bitfinex/quotes_SOLUSD_20250410
["timestamp","ask_amount","ask_price","bid_price","bid_amount"]
[1744292463763,58.7465606,112.26,112.18,31.1994]
[1744292463973,58.7465606,112.25,112.2,58.7465606]
[1744292464175,58.7465606,112.25,112.2,67.6585606]
[1744292464372,18.64964886,112.28,112.2,67.6585606]
[1744292464573,58.7465606,112.24,112.2,58.7465606]
[1744292464791,58.7465606,112.24,112.2,67.6590606]
[1744292465169,18.64964886,112.28,112.16,89.26532314]
[1744292465170,58.7465606,112.23,112.17,8.915]
[1744292465481,58.7465606,112.24,112.19,58.7465606]
[1744292465694,100.14964886,112.28,112.21,58.7465606]
[1744292465866,58.7465606,112.26,112.21,58.7465606]
[1744292466187,67.6550606,112.26,112.21,58.7465606]
[1744292466485,58.7465606,112.25,112.2,58.7465606]
[1744292466879,22.2627,112.3,112.24,58.7465606]
[1744292467091,58.7465606,112.31,112.26,58.7465606]
[1744292467391,58.7465606,112.29,112.24,58.7465606]
[1744292467595,22.2586,112.32,112.25,58.7465606]
[1744292467893,58.7465606,112.31,112.26,58.7465606]
[1744292468080,58.7465606,112.31,112.27,58.7465606]
[1744292468286,22.2558,112.33,112.27,58.7465606]
[1744292468486,58.7465606,112.31,112.27,58.7465606]
[1744292468670,140.2465606,112.32,112.2,8.9126]
[1744292468879,58.7465606,112.24,112.19,90.113]
[1744292469097,58.7465606,112.23,112.19,8.913]
[1744292469389,58.7465606,112.26,112.17,8.9146]
[1744292469594,58.7465606,112.26,112.17,67.6611606]
[1744292469776,58.7465606,112.22,112.17,67.6611606]
[1744292470092,58.7465606,112.22,112.17,8.9146]
[1744292470293,67.6577606,112.22,112.17,58.7465606]
[1744292470597,67.6576606,112.22,112.17,58.7465606]
[1744292470790,58.7465606,112.21,112.16,67.6623606]
[1744292471108,58.7465606,112.22,112.16,67.6623606]
[1744292471275,58.7465606,112.22,112.17,58.7465606]
[1744292471482,58.7465606,112.2,112.15,8.9163]
[1744292471685,31.183,112.24,112.15,8.9163]
[1744292471885,58.7465606,112.19,112.15,8.9163]
[1744292472194,31.183,112.24,112.17,58.7465606]
[1744292472374,8.9103,112.23,112.18,8.9142]
[1744292472579,58.7465606,112.23,112.18,67.6607606]
[1744292473091,58.7465606,112.22,112.18,8.9142]
[1744292473295,31.1803,112.25,112.18,8.9142]
[1744292473499,58.7465606,112.23,112.18,67.6607606]
[1744292473695,8.9063,112.28,112.2,58.7465606]
[1744292473865,8.9063,112.28,112.23,58.7465606]
[1744292474070,8.9047,112.3,112.24,58.7465606]
[1744292474299,58.7465606,112.28,112.23,58.7465606]
[1744292474478,67.6530606,112.28,112.23,67.6562606]
[1744292474890,8.9065,112.28,112.23,67.6562606]
[1744292475201,58.7465606,112.28,112.23,8.9097]
[1744292475393,58.7465606,112.26,112.22,8.3041]
[1744292475704,58.7465606,112.26,112.22,17.2151]
[1744292475887,58.7465606,112.28,112.23,58.7465606]
[1744292476087,58.7465606,112.25,112.18,100.0]
[1744292476401,58.7465606,112.2,112.18,6.5234]
[1744292476694,8.9086,112.25,112.18,74.1841606]
[1744292476905,8.9086,112.25,112.19,58.7465606]
[1744292477114,58.7465606,112.25,112.2,58.7465606]
[1744292477404,8.9081,112.26,112.21,58.7465606]
[1744292477582,58.7465606,112.23,112.18,15.4376]
[1744292477788,89.9243606,112.26,112.18,15.4376]
[1744292477970,89.9243606,112.26,112.18,74.1841606]
[1744292478174,58.7465606,112.23,112.18,74.1841606]
[1744292478403,67.6569606,112.23,112.18,15.4376]
[1744292478611,58.7465606,112.22,112.18,6.5234]
[1744292478795,58.7465606,112.21,112.18,6.5234]
[1744292479219,58.7465606,112.22,112.18,6.5234]
[1744292479506,8.9104,112.23,112.18,6.5234]
[1744292479679,58.7465606,112.22,112.18,15.4376]
[1744292479882,8.9078,112.26,112.19,58.7465606]
[1744292480089,58.7465606,112.24,112.19,58.7465606]
[1744292480300,8.9063,112.28,112.21,58.7465606]
[1744292480605,58.7465606,112.26,112.22,67.6569606]
[1744292480907,8.9058,112.29,112.23,58.7465606]
[1744292481080,58.7465606,112.29,112.24,58.7465606]
[1744292481698,31.1498,112.36,112.28,58.7465606]
[1744292481892,58.7465606,112.37,112.27,19.08432314]
[1744292482089,58.7465606,112.36,112.27,100.0]
[1744292482293,58.7465606,112.33,112.28,58.7465606]
[1744292482506,58.7465606,112.31,112.27,18.8]
[1744292482710,58.7465606,112.32,112.24,393.2904]
[1744292483003,58.7465606,112.29,112.24,15.1796]
[1744292483178,26.0,112.32,112.24,15.1796]
[1744292483682,58.7465606,112.29,112.24,73.9261606]
[1744292483884,8.8967,112.4,112.28,58.7465606]
[1744292484208,58.7465606,112.44,112.32,58.7465606]
[1744292484398,58.7465606,112.38,112.3,18.64964886]
[1744292484705,58.7465606,112.36,112.32,8.9025]
[1744292484908,58.7465606,112.37,112.32,58.7465606]
[1744292485211,58.7465606,112.35,112.31,58.7465606]
[1744292485376,58.7465606,112.34,112.29,75.9614606]
[1744292485581,26.0,112.35,112.29,8.3098]
[1744292485784,58.7465606,112.38,112.29,17.2152]
[1744292485979,18.8,112.39,112.31,58.7465606]
[1744292486186,58.7465606,112.33,112.29,8.3098]
[1744292486382,81.5,112.4,112.31,58.7465606]
[1744292486603,58.7465606,112.38,112.33,67.6486606]
[1744292487383,58.7465606,112.4,112.35,58.7465606]
[1744292487591,58.7465606,112.44,112.36,58.7465606]
[1744292487799,58.7465606,112.4,112.33,31.1579]
[1744292488005,58.7465606,112.41,112.36,58.7465606]
[1744292488185,58.7465606,112.39,112.33,8.9021]
[1744292488386,26.0,112.4,112.33,67.6486606]
[1744292488699,18.64964886,112.43,112.35,58.7465606]
[1744292488897,58.7465606,112.4,112.35,58.7465606]
[1744292489101,18.64964886,112.43,112.33,8.9021]
[1744292489298,58.7465606,112.4,112.33,8.9021]
[1744292489500,58.7465606,112.4,112.32,139.9465606]
[1744292489501,18.64964886,112.41,112.32,8.9029]
[1744292489688,26.0,112.4,112.33,58.7465606]
[1744292489997,58.7465606,112.39,112.34,58.7465606]
[1744292490790,58.7465606,112.38,112.31,8.9039]
[1744292491004,58.7465606,112.34,112.29,8.3098]
[1744292491207,58.7465606,112.34,112.29,67.0563606]
[1744292491396,58.7465606,112.32,112.29,8.3098]
[1744292491600,26.0,112.34,112.25,6.2412]
[1744292491794,58.7465606,112.29,112.25,6.2412]
[1744292492308,58.7465606,112.31,112.25,6.2412]
[1744292492493,0.28432314,112.36,112.25,15.1492]
[1744292492494,58.7465606,112.29,112.25,15.1492]
[1744292492889,58.7465606,112.3,112.25,73.8957606]
[1744292493510,18.933972,112.36,112.28,58.7465606]
[1744292493815,84.7465606,112.33,112.28,58.7465606]
[1744292494113,18.78,112.38,112.31,58.7465606]
[1744292494286,58.7465606,112.38,112.33,58.7465606]
[1744292494481,81.5,112.42,112.34,58.7465606]
[1744292494711,58.7465606,112.38,112.29,31.1692]
[1744292494899,58.7465606,112.38,112.33,58.7465606]
[1744292495095,58.7465606,112.37,112.32,58.7465606]
[1744292495387,58.7465606,112.36,112.31,58.7465606]
[1744292495690,58.7465606,112.37,112.33,58.7465606]
[1744292496211,78.0265606,112.44,112.33,58.7465606]
[1744292496425,58.7465606,112.4,112.35,58.7465606]
[1744292496707,18.78,112.44,112.37,58.7465606]
[1744292496912,58.7465606,112.43,112.38,58.7465606]
[1744292498018,58.7465606,112.45,112.4,58.7465606]
[1744292498186,58.7465606,112.46,112.41,58.7465606]
[1744292498387,0.03,112.47,112.42,58.7465606]
[1744292498914,0.03,112.47,112.45,58.7465606]
[1744292499112,0.03,112.47,112.46,58.7465606]
[1744292500214,0.03,112.47,112.43,64.8336606]
[1744292500414,0.03,112.47,112.43,6.0871]
[1744292500802,0.03,112.47,112.43,64.8336606]
[1744292501613,0.03,112.47,112.43,14.981]
[1744292501804,0.03,112.47,112.45,58.7465606]
[1744292501998,0.03,112.47,112.46,58.7465606]
[1744292502710,0.03,112.47,112.43,14.981]
[1744292502888,58.7765606,112.47,112.43,6.0871]
[1744292503488,58.7765606,112.47,112.45,58.7465606]
[1744292503489,0.03,112.47,112.45,58.7465606]
[1744292503709,0.03,112.47,112.46,58.7465606]
[1744292504619,0.03,112.47,112.43,14.9814]
[1744292505125,0.03,112.47,112.46,58.7465606]
[1744292505425,0.03,112.47,112.45,58.7465606]
[1744292505728,0.03,112.47,112.43,37.2174]
[1744292505900,0.03,112.47,112.46,58.7465606]
[1744292506300,0.03,112.47,112.45,58.7465606]
[1744292506607,0.03,112.47,112.46,58.7465606]
[1744292506811,0.03,112.47,112.44,8.8933]
[1744292507113,0.03,112.47,112.46,58.7465606]
[1744292508232,0.03,112.47,112.46,67.6385606]
[1744292508807,58.7765606,112.47,112.43,6.0871]
[1744292509007,58.7465606,112.44,112.39,6.0275]
[1744292509214,58.7465606,112.43,112.39,6.0275]
[1744292509922,0.03,112.47,112.4,58.7465606]
[1744292510128,26.03,112.47,112.42,67.6409606]
[1744292510429,84.7765606,112.47,112.42,8.8944]
[1744292510726,84.7765606,112.47,112.4,22.2408]
[1744292510727,58.7465606,112.46,112.41,58.7465606]
[1744292511023,84.7765606,112.47,112.42,58.7465606]
[1744292511222,58.7465606,112.46,112.41,58.7465606]
[1744292511520,58.7465606,112.42,112.37,8.899]
[1744292511724,58.7465606,112.41,112.37,67.6455606]
[1744292511903,58.7465606,112.4,112.35,17.0174]
[1744292512104,67.6437606,112.4,112.35,75.7639606]
[1744292512306,58.7465606,112.39,112.35,17.0174]
[1744292512519,58.7465606,112.39,112.35,8.1169]
[1744292512718,58.7465606,112.39,112.35,17.0176]
[1744292513217,58.7465606,112.36,112.3,8.9047]
[1744292513396,58.7465606,112.31,112.29,0.063]
[1744292513602,58.7465606,112.3,112.29,0.063]
[1744292514310,67.6498606,112.32,112.29,0.063]
[1744292514513,58.7465606,112.3,112.29,0.063]
[1744292515212,49.81074886,112.32,112.29,0.063]
[1744292515417,84.7465606,112.3,112.29,0.063]
[1744292515601,93.6512606,112.3,112.29,0.063]
[1744292516138,67.6512606,112.3,112.29,0.063]
[1744292516421,86.30090946,112.3,112.29,0.063]
[1744292516828,67.6512606,112.3,112.29,0.063]
[1744292517012,58.7465606,112.3,112.29,0.063]
[1744292517327,34.9042,112.31,112.29,0.063]
[1744292517513,67.6498606,112.32,112.29,0.063]
[1744292517699,8.9015,112.34,112.29,58.8095606]
[1744292517905,58.7465606,112.34,112.29,0.063]
[1744292518122,58.7465606,112.31,112.29,0.063]
[1744292518298,31.1498,112.36,112.29,0.063]
[1744292518299,49.94161043,112.36,112.29,0.063]
[1744292518503,26.0,112.33,112.29,0.063]
[1744292519011,58.7465606,112.32,112.29,0.063]
[1744292519200,58.7465606,112.3,112.29,0.063]
[1744292519402,18.64964886,112.32,112.29,0.063]
[1744292519620,67.6512606,112.3,112.29,0.063]
[1744292520706,86.30090946,112.3,112.29,0.0001]
[1744292521036,86.30090946,112.3,112.22,0.063]
[1744292521037,44.64964886,112.26,112.22,0.063]
[1744292521330,58.7465606,112.26,112.22,0.063]
[1744292521534,58.7465606,112.26,112.24,0.063]
[1744292521734,67.6551606,112.25,112.24,0.063]
[1744292521903,86.30480946,112.25,112.24,0.063]
[1744292522333,26.0,112.23,112.22,0.063]
[1744292522507,84.7465606,112.23,112.22,0.063]
[1744292523103,103.53837103,112.23,112.22,0.063]
[1744292523306,103.6805326,112.23,112.22,0.063]
[1744292524736,84.7465606,112.23,112.22,0.063]
[1744292524917,17.44,112.27,112.22,0.063]
[1744292525119,81.5,112.29,112.22,58.8095606]
[1744292525439,58.7465606,112.29,112.24,58.7465606]
[1744292525619,58.7465606,112.29,112.24,65.0541606]
[1744292525817,81.5,112.35,112.26,58.7465606]
[1744292526023,17.44,112.37,112.28,58.7465606]
[1744292526219,58.7465606,112.38,112.28,58.7465606]
[1744292526417,58.7465606,112.36,112.31,58.7465606]
[1744292526616,58.7465606,112.37,112.32,58.7465606]
[1744292526910,98.94,112.42,112.35,58.7465606]
[1744292527237,58.7465606,112.37,112.3,6.6317]
[1744292527533,58.7465606,112.38,112.33,58.7465606]
[1744292527716,58.7465606,112.38,112.33,67.6487606]
[1744292527902,58.7465606,112.39,112.34,58.7465606]
[1744292528104,58.7465606,112.36,112.3,6.6317]
[1744292528417,99.44,112.42,112.3,6.6317]
[1744292528418,58.7465606,112.33,112.3,6.6317]
[1744292528732,58.7465606,112.32,112.3,6.6317]
[1744292528916,58.7465606,112.38,112.3,6.6317]
[1744292529234,84.7465606,112.36,112.3,6.6317]
[1744292529535,58.7465606,112.35,112.3,6.6317]
[1744292529725,58.7465606,112.36,112.32,8.9031]
[1744292529934,36.08964886,112.42,112.34,58.7465606]
[1744292530235,58.7465606,112.38,112.32,8.9031]
[1744292530536,58.7465606,112.36,112.3,6.6317]
[1744292530747,26.0,112.39,112.3,6.6317]
[1744292530748,58.7465606,112.35,112.3,6.6317]
[1744292530930,58.7465606,112.35,112.3,65.3782606]
[1744292531313,58.7465606,112.34,112.3,6.6317]
[1744292531610,58.7465606,112.38,112.3,65.3782606]
[1744292531808,58.7465606,112.35,112.3,74.2829606]
[1744292532046,58.7465606,112.36,112.31,58.7465606]
[1744292532341,81.5,112.41,112.33,58.7465606]
[1744292532636,58.7465606,112.38,112.33,58.7465606]
[1744292533121,58.7465606,112.38,112.3,37.7981]
[1744292533438,58.7465606,112.37,112.32,58.7465606]
[1744292533627,18.64964886,112.4,112.32,58.7465606]
[1744292533937,58.7465606,112.37,112.32,58.7465606]
[1744292534122,58.7465606,112.36,112.31,67.6500606]
[1744292534442,58.7465606,112.36,112.32,58.7465606]
[1744292534617,0.03,112.4,112.33,58.7465606]
[1744292535022,58.7465606,112.38,112.33,58.7465606]
[1744292535405,58.7465606,112.36,112.3,6.6317]
[1744292535625,58.7465606,112.35,112.3,15.536]
[1744292535805,58.7465606,112.35,112.3,74.2825606]
[1744292538950,0.03,112.4,112.36,58.7465606]
[1744292539312,58.7465606,112.38,112.32,8.9031]
[1744292539515,58.7465606,112.38,112.33,58.7465606]
[1744292539740,58.7465606,112.38,112.34,58.7465606]
[1744292539914,58.7465606,112.39,112.34,67.6475606]
[1744292540122,58.7465606,112.38,112.31,22.40116157]
[1744292540322,58.7465606,112.39,112.34,58.7465606]
[1744292540514,58.7465606,112.39,112.35,58.7465606]
[1744292540842,0.03,112.4,112.35,58.7465606]
[1744292541132,58.7465606,112.38,112.32,8.9031]
[1744292541347,58.7465606,112.38,112.33,58.7465606]
[1744292541634,58.7465606,112.39,112.34,58.7465606]
[1744292541833,0.03,112.4,112.36,58.7465606]
[1744292542026,0.03,112.4,112.36,67.6463606]
[1744292542226,0.03,112.4,112.36,58.7465606]
[1744292542538,0.03,112.4,112.35,8.9003]
[1744292542735,0.03,112.4,112.36,58.7465606]
[1744292543635,0.03,112.4,112.31,125.7195]
[1744292543636,58.7465606,112.37,112.3,28.8925]
[1744292543829,58.7465606,112.36,112.31,58.7465606]
[1744292544026,58.7465606,112.37,112.32,58.7465606]
[1744292544539,58.7465606,112.36,112.31,58.7465606]
[1744292545631,67.6466606,112.36,112.31,67.6499606]
[1744292545818,8.9001,112.36,112.3,74.2825606]
[1744292546013,8.9001,112.36,112.3,6.6317]
[1744292546249,58.7465606,112.31,112.27,1.5302]
[1744292546418,18.64964886,112.34,112.27,1.5302]
[1744292546419,58.7465606,112.3,112.27,1.5302]
[1744292546934,58.7465606,112.31,112.27,10.4371]
[1744292547323,58.7465606,112.33,112.28,58.7465606]
[1744292547550,58.7465606,112.33,112.3,8.9047]
[1744292547843,58.7465606,112.34,112.29,67.6517606]
[1744292548144,58.7465606,112.33,112.28,67.6524606]
[1744292548323,58.7465606,112.33,112.29,58.7465606]
[1744292548643,8.9002,112.36,112.3,58.7465606]
[1744292548841,58.7465606,112.35,112.3,58.7465606]
[1744292549024,31.1501,112.36,112.28,67.6524606]
[1744292549216,58.7465606,112.31,112.27,1.5302]
[1744292549419,8.9002,112.36,112.29,58.7465606]
[1744292549727,8.9002,112.36,112.31,58.7465606]
[1744292549728,58.7465606,112.36,112.31,58.7465606]
[1744292549937,8.8991,112.37,112.32,58.7465606]
[1744292550239,58.7465606,112.35,112.29,8.9052]
[1744292550447,58.7465606,112.34,112.3,58.7465606]
[1744292550955,58.7465606,112.36,112.31,58.7465606]
[1744292551254,67.6440606,112.39,112.33,0.28432314]
[1744292551424,58.7465606,112.38,112.3,18.64964886]
[1744292551623,67.6440606,112.39,112.34,67.6479606]
[1744292551825,67.6440606,112.39,112.32,8.9031]
[1744292552133,58.7465606,112.38,112.33,58.7465606]
[1744292552314,58.7465606,112.36,112.31,58.7465606]
[1744292552520,58.7465606,112.35,112.3,67.6508606]
[1744292552721,31.1414,112.39,112.32,58.7465606]
[1744292553227,67.6736606,112.4,112.35,58.7465606]
[1744292553539,67.6736606,112.4,112.33,6.263]
[1744292553540,58.7465606,112.39,112.34,58.7465606]
[1744292553741,67.6448606,112.38,112.33,73.9114606]
[1744292553945,58.7465606,112.37,112.33,6.263]
[1744292554242,58.7465606,112.37,112.33,65.0095606]
[1744292554448,58.7465606,112.35,112.3,8.9047]
[1744292554631,58.7465606,112.33,112.29,74.0703606]
[1744292554938,58.7465606,112.33,112.29,6.4187]
[1744292555443,58.7465606,112.33,112.29,15.3239]
[1744292555627,18.64964886,112.37,112.29,15.3239]
[1744292555628,34.9022,112.34,112.29,65.1652606]
[1744292555826,58.7465606,112.33,112.29,6.4187]
[1744292556146,67.6487606,112.34,112.29,65.1652606]
[1744292556344,58.7465606,112.34,112.29,74.0706606]
[1744292556527,67.6472606,112.35,112.3,58.7465606]
[1744292556727,58.7465606,112.33,112.29,74.0706606]
[1744292557045,67.6472606,112.35,112.3,58.7465606]
[1744292557537,67.6472606,112.35,112.29,15.3241]
[1744292557742,58.7465606,112.34,112.3,8.9047]
[1744292558643,67.6472606,112.35,112.3,67.6512606]
[1744292558940,8.9271,112.4,112.34,58.7465606]
[1744292559126,67.6736606,112.4,112.35,58.7465606]
[1744292559328,67.6736606,112.4,112.3,31.1664]
[1744292559530,58.7465606,112.36,112.3,31.1664]
[1744292559834,67.6465606,112.36,112.32,8.9031]
[1744292560231,58.7465606,112.33,112.29,6.4187]
[1744292560425,58.7465606,112.3,112.25,6.1872]
[1744292560625,58.7465606,112.27,112.22,1.6325]
[1744292560827,58.7465606,112.28,112.23,58.7465606]
[1744292561057,18.64964886,112.31,112.23,58.7465606]
[1744292561225,58.7465606,112.27,112.22,10.5433]
[1744292561426,58.7465606,112.23,112.22,0.063]
[1744292562260,8.9055,112.29,112.22,0.063]
[1744292562552,26.0,112.26,112.22,0.063]
[1744292562737,58.7465606,112.24,112.22,0.063]
[1744292562939,31.1692,112.29,112.22,0.063]
[1744292563248,58.7465606,112.27,112.22,58.8095606]
[1744292563753,67.6542606,112.27,112.22,58.8095606]
[1744292564047,8.9065,112.28,112.23,58.7465606]
[1744292564228,58.7465606,112.27,112.22,67.7203606]
[1744292564743,58.7465606,112.27,112.22,0.063]
[1744292564934,8.9065,112.28,112.22,67.7203606]
[1744292565252,58.7465606,112.23,112.22,0.063]
[1744292565756,84.7465606,112.23,112.22,0.063]
[1744292565926,103.39620946,112.23,112.22,0.063]
[1744292566125,18.64964886,112.22,112.2,0.063]
[1744292566327,77.39620946,112.21,112.2,0.063]
[1744292566547,58.7465606,112.21,112.2,0.063]
[1744292567234,26.0,112.22,112.2,0.063]
[1744292567443,58.7465606,112.21,112.2,0.063]
[1744292567641,136.4270932,112.21,112.2,0.063]
[1744292567841,26.0,112.19,112.18,0.063]
[1744292568153,84.7465606,112.19,112.18,0.063]
[1744292569126,8.9118,112.21,112.18,0.063]
[1744292569332,8.9113,112.22,112.18,0.063]
[1744292569545,58.7465606,112.2,112.18,0.063]
[1744292569832,58.7465606,112.19,112.18,0.063]
[1744292570441,8.9121,112.21,112.18,0.063]
[1744292570658,58.7465606,112.19,112.18,0.063]
[1744292570868,58.7465606,112.2,112.18,0.063]
[1744292571068,8.9121,112.21,112.18,0.063]
[1744292571279,58.7465606,112.19,112.18,0.063]
[1744292571642,26.0,112.19,112.18,0.063]
[1744292571953,31.186,112.23,112.18,0.063]
[1744292572162,58.7465606,112.2,112.18,0.063]
[1744292572356,58.7465606,112.19,112.18,0.063]
[1744292572847,31.186,112.23,112.18,0.063]
[1744292573042,58.7465606,112.2,112.18,0.063]
[1744292573253,58.7465606,112.19,112.18,0.063]
[1744292573850,31.186,112.23,112.18,0.063]
[1744292574054,81.5,112.27,112.19,58.7465606]
[1744292574258,81.5,112.27,112.2,58.7465606]
[1744292574441,58.7465606,112.24,112.18,8.1431]
[1744292574636,58.7465606,112.23,112.18,66.8896606]
[1744292575268,58.7465606,112.26,112.18,66.8896606]
[1744292575448,58.7465606,112.23,112.18,66.8896606]
[1744292575645,81.5,112.27,112.2,58.7465606]
[1744292575846,58.7465606,112.25,112.2,67.6589606]
[1744292576247,81.5,112.31,112.24,58.7465606]
[1744292576440,58.7465606,112.28,112.2,90.22488374]
[1744292576666,26.0,112.29,112.2,89.9405606]
[1744292576864,26.0,112.29,112.25,58.7465606]
[1744292577038,84.7465606,112.29,112.24,58.7465606]
[1744292577239,18.67964886,112.33,112.21,18.933972]
[1744292577240,0.03,112.33,112.21,18.933972]
[1744292577478,0.03,112.33,112.26,58.7465606]
[1744292577647,0.03,112.33,112.23,18.933972]
[1744292577848,0.03,112.33,112.26,8.9073]
[1744292578045,58.7765606,112.33,112.26,8.9073]
[1744292578250,58.7465606,112.32,112.27,58.7465606]
[1744292578544,58.7465606,112.31,112.26,58.7465606]
[1744292578747,58.7465606,112.31,112.24,8.9094]
[1744292578938,58.7465606,112.28,112.23,58.7465606]
[1744292579140,0.28432314,112.31,112.22,17.0202]
[1744292579340,58.7465606,112.26,112.22,17.0202]
[1744292579568,58.7465606,112.27,112.22,75.7667606]
[1744292579776,26.0,112.29,112.22,75.7667606]
[1744292579987,58.7465606,112.28,112.22,17.0202]
[1744292580173,140.2465606,112.32,112.24,58.7465606]
[1744292580374,58.7465606,112.3,112.24,58.7465606]
[1744292580575,58.7465606,112.31,112.26,58.7465606]
[1744292580963,58.7465606,112.3,112.25,58.7465606]
[1744292581291,58.7465606,112.28,112.24,58.7465606]
[1744292581485,58.7465606,112.32,112.23,58.7465606]
[1744292581691,58.7465606,112.32,112.24,58.7465606]
[1744292581990,58.7465606,112.29,112.24,67.6553606]
[1744292582587,58.7465606,112.32,112.22,17.0199]
[1744292582588,18.64964886,112.31,112.22,17.0199]
[1744292582881,58.7465606,112.26,112.22,75.7664606]
[1744292583288,58.7465606,112.26,112.22,8.1092]
[1744292583578,58.7465606,112.23,112.18,83.8433606]
[1744292583764,58.7465606,112.21,112.18,0.063]
[1744292583966,58.7465606,112.19,112.18,0.063]
[1744292584855,58.7465606,112.2,112.18,0.063]
[1744292585084,58.7465606,112.21,112.18,0.063]
[1744292585458,58.7465606,112.2,112.18,0.063]
[1744292586199,67.6592606,112.2,112.18,0.063]
[1744292587261,58.7465606,112.19,112.18,0.063]
[1744292587473,58.7465606,112.2,112.18,0.063]
[1744292588090,58.7465606,112.19,112.18,0.063]
[1744292588563,8.9126,112.2,112.18,0.063]
[1744292588770,58.7465606,112.19,112.18,0.063]
[1744292589986,86.30960946,112.19,112.18,0.063]
[1744292590197,108.59320946,112.19,112.14,0.063]
[1744292590490,58.7465606,112.15,112.14,0.063]
[1744292590965,18.64964886,112.18,112.14,0.063]
[1744292591169,58.7465606,112.15,112.14,0.063]
[1744292591387,58.7465606,112.16,112.14,0.063]
[1744292591711,58.7465606,112.15,112.14,0.063]
[1744292592199,18.64964886,112.18,112.14,0.063]
[1744292592368,58.7465606,112.16,112.14,0.063]
[1744292592570,58.7465606,112.2,112.14,0.063]
[1744292592801,58.7465606,112.17,112.14,0.063]
[1744292592974,58.7465606,112.15,112.14,0.063]
[1744292594304,49.84714886,112.19,112.14,0.063]
[1744292594513,58.7465606,112.15,112.14,0.063]
[1744292594868,77.39620946,112.15,112.14,0.063]
[1744292595275,77.39620946,112.15,112.13,0.063]
[1744292595576,136.14277006,112.14,112.13,0.0001]
[1744292595777,26.0,112.11,112.09,0.063]
[1744292596086,77.39620946,112.1,112.09,0.063]
[1744292596476,26.0,112.08,112.07,0.063]
[1744292596688,162.4270932,112.08,112.07,0.0001]
[1744292596903,162.14277006,112.08,112.07,0.0001]
[1744292597211,162.4270932,112.08,112.07,0.0001]
[1744292597498,18.64964886,112.07,112.05,15.93652561]
[1744292597892,18.64964886,112.09,112.05,15.93652561]
[1744292598200,58.7465606,112.06,112.05,15.93652561]
[1744292598380,58.7465606,112.08,112.05,15.93652561]
[1744292598580,26.0,112.08,112.05,15.93652561]
[1744292598777,58.7465606,112.09,112.05,15.93652561]
[1744292599601,16.38,112.15,112.05,15.93652561]
[1744292599602,16.38,112.15,112.07,58.7465606]
[1744292599909,77.39620946,112.14,112.06,65.2710606]
[1744292600396,58.7465606,112.11,112.06,65.2710606]
[1744292600596,58.7465606,112.11,112.07,58.7465606]
[1744292600786,58.7465606,112.12,112.06,6.5245]
[1744292600983,58.7465606,112.14,112.07,58.7465606]
[1744292601209,58.7465606,112.11,112.06,65.2710606]
[1744292601410,58.7465606,112.1,112.06,6.5245]
[1744292601705,18.64964886,112.13,112.06,6.5245]
[1744292601906,58.7465606,112.11,112.06,65.2710606]
[1744292602203,16.38,112.16,112.08,58.7465606]
[1744292602417,58.7465606,112.13,112.07,8.9227]
[1744292602709,142.62975151,112.2,112.1,58.7465606]
[1744292603008,58.7465606,112.13,112.07,83.12602314]
[1744292603187,58.7465606,112.13,112.07,1.6417]
[1744292603394,58.7465606,112.14,112.09,58.7465606]
[1744292603600,26.0,112.17,112.08,0.28432314]
[1744292603911,18.64964886,112.16,112.08,58.7465606]
[1744292604110,58.7465606,112.1,112.07,1.6417]
[1744292604322,18.64964886,112.16,112.08,58.7465606]
[1744292604617,18.64964886,112.18,112.1,58.7465606]
[1744292604799,58.7465606,112.15,112.09,0.28432314]
[1744292605003,58.7465606,112.15,112.11,58.7465606]
[1744292605214,58.7465606,112.16,112.11,58.7465606]
[1744292605824,18.64964886,112.18,112.1,58.7465606]
[1744292606014,58.7465606,112.15,112.1,58.7465606]
[1744292606227,18.64964886,112.18,112.09,0.28432314]
[1744292606420,58.7465606,112.14,112.09,58.7465606]
[1744292606621,18.64964886,112.18,112.08,0.28432314]
[1744292606811,18.64964886,112.18,112.1,58.7465606]
[1744292607014,58.7465606,112.14,112.09,58.7465606]
[1744292607241,58.7465606,112.1,112.07,1.6417]
[1744292607530,58.7465606,112.14,112.07,1.6417]
[1744292607531,58.7465606,112.11,112.07,1.6417]
[1744292607724,58.7465606,112.13,112.08,58.7465606]
[1744292608223,58.7465606,112.13,112.07,10.5642]